Cogmind - Beta 12 X2 @@@ ROGUE MODE // 2022.09.09 @ 17:20:26 Player: ArabianSandBoa Result: Destroyed by G-34 Mercenary with Small Laser Performance ------------- Evolutions (0) 0 Regions Visited (3) 600 Robots Destroyed (38) 190 Value Destroyed (984) 984 Prototype IDs (25) 500 Alien Tech Used (0) 0 Bonus (275) 275 TOTAL SCORE: 2549 Bonus ------- Aligned with FarCom 300 Friendly Fire -25 Cogmind --------- Core Integrity 0/250 Matter 252/300 Energy 100/100 System Corruption 1% Temperature Cool (6) Movement Core (350) Ox6 Location -10/Exiles Parts ------- > --- POWER (1) -------- (None) > --- PROPULSION (2) --- (None) > --- UTILITY (2) ------ Large Storage Unit Transport Network Coupler > --- WEAPON (2) ------- Mini Grenade Launcher > --- INVENTORY (15) --- Carbon-fiber Leg Combat Airjet Flight Unit Flying Fortress v7 Large Storage Unit Sensor Array Signal Interpreter Power Shielding Light Assault Rifle Plasma Cutter Flail Peak State ------------ > --- POWER ------------ Light Nuclear Core > --- PROPULSION ------- Wheel Compact Wheel > --- UTILITY ---------- Large Storage Unit Transport Network Coupler > --- WEAPON ----------- Mini Grenade Launcher Mini Grenade Launcher > --- INVENTORY -------- Compact Wheel Flight Unit Flying Fortress v7 Large Storage Unit Sensor Array Signal Interpreter Power Shielding Light Assault Rifle Plasma Cutter Flail [Rating: 15] Favorites ----------- Power Light Nuclear Core Engine Light Ion Engine Power Core Light Nuclear Core Propulsion Wheel Treads Light Treads Wheel Wheel Utility Large Storage Unit Storage Large Storage Unit Processor Transport Network Coupler Weapon EM Pulse Gun Energy Gun EM Pulse Gun Ballistic Gun Light Assault Rifle Launcher Mini Grenade Launcher Build | -11 -10 -10 -10 ------- Run | Scr Mat Min Exi Slots Evolved . | . . . . Power . | . . . . Propulsion . | . . . . Utility . | . . . . Weapon . | . . . . Parts Attached 23 | 4 13 3 3 Power 5 | . 3 1 1 Engine 4 | . 3 . 1 Core 1 | . . 1 . Reactor . | . . . . Propulsion 7 | 2 3 1 1 Treads 2 | 2 . . . Leg . | . . . . Wheel 5 | . 3 1 1 Hover . | . . . . Flight . | . . . . Utility 3 | . 3 . . Device . | . . . . Storage 2 | . 2 . . Processor 1 | . 1 . . Hackware . | . . . . Protection . | . . . . Artifact . | . . . . Weapon 8 | 2 4 1 1 Energy Gun 4 | 1 3 . . Energy Cannon . | . . . . Ballistic Gun 2 | 1 . 1 . Ballistic Cannon . | . . . . Launcher 2 | . 1 . 1 Special Weapon . | . . . . Impact Weapon . | . . . . Slashing Weapon . | . . . . Piercing Weapon . | . . . . Special Melee Weapon . | . . . . Unidentified Prototypes . | . . . . Parts Lost 9 | . 2 1 6 Power 3 | . 1 . 2 Propulsion 4 | . . 1 3 Utility . | . . . . Weapon 2 | . 1 . 1 Highest Loss Streak 4 | . 2 1 4 To Critical Strikes . | . . . . Average Slot Usage (%) 88 | . 84 86 94 Engine 7 | . 12 . 1 Core 5 | . . 13 11 Wheel 25 | . 26 24 25 Storage 14 | . 14 14 14 Processor 10 | . 6 14 14 Energy Gun 11 | . 22 . . Ballistic Gun 4 | . . 5 10 Launcher 7 | . . 14 16 Naked Turns . | . . . . Heaviest Build 27 | 4 27 27 27 Greatest Support 40 | 40 40 26 26 Greatest Overweight (x) 6 | . 1 2 6 Average Overweight (x) . | . . 1 1 Largest Inventory Capacity 15 | 5 15 15 15 Average Capacity 13 | 5 14 15 15 Most Carried 15 | 5 14 15 15 Average Carried 8 | 2 4 13 14 Final Capacity 15 | 5 15 15 15 Final Carried 15 | 5 11 15 14 Class Distribution -------------------- 56% | Mutant 43% | Scavenger-Mutant Dominant Class ---------------- Mutant | -10/Materials Scavenger-Mutant | -10/Mines Scavenger-Mutant | -10/Exiles Resources | -11 -10 -10 -10 ----------- Run | Scr Mat Min Exi Matter Collected 555 | 258 100 123 74 Remotely . | . . . . Salvage Created 1217 | 163 439 247 368 Parts 62 | 10 21 10 21 Haulers Intercepted 2 | . 2 . . Recyclers Shooed . | . . . . Parts Field Recycled . | . . . . Retrieved Matter . | . . . . Parts Self-Destructed . | . . . . Prevented . | . . . . Kills | -11 -10 -10 -10 ------- Run | Scr Mat Min Exi Combat Hostiles Destroyed 26 | . 3 7 16 Guns 2 | . 2 . . AOE 23 | . . 7 16 Classes Destroyed 11 | 3 3 1 4 Worker 3 | 2 1 . . Tunneler 2 | 2 . . . Hauler 2 | . 2 . . Recycler 4 | 1 1 2 . Watcher 3 | . 3 . . Swarmer 3 | . . 3 . Grunt 16 | . 3 4 9 Brawler 1 | . . . 1 Hunter 3 | . . . 3 Programmer 1 | . . . 1 Assembled 2 | . . . 2 Best Kill Streak 8 | 3 4 3 8 Combat Bots Only 8 | . 2 3 8 Max Kills in Single Turn 8 | 2 1 3 8 Gunslinging . | . . . . Exploded 8 | . . 3 8 Melee . | . . . . Uniques/NPCs Destroyed . | . . . . Combat | -11 -10 -10 -10 -------- Run | Scr Mat Min Exi Damage Taken 774 | . 199 70 505 Core 260 | . 39 22 199 Absorbed by Shields . | . . . . Core Remaining (%) 100 | 100 . . . Volleys Fired 46 | 6 26 9 5 Largest 2 | 2 2 1 2 Hottest 80 | 70 80 30 60 Shots Fired 77 | 12 46 9 10 Gun 58 | 12 46 . . Cannon . | . . . . Launcher 19 | . . 9 10 Special . | . . . . Kinetic 6 | 6 . . . Thermal 6 | 6 . . . Explosive 19 | . . 9 10 Electromagnetic 46 | . 46 . . Robot Hit Streak 7 | 5 7 6 . Robot Miss Streak 2 | 1 2 1 . Penetration Max . | . . . . Secondary Targets . | . . . . Shots Hit Robots 48 | 9 32 7 . Core Hits 58 | 6 13 12 27 Critical Kills . | . . . . Critical Parts Destroyed . | . . . . Critical Strikes . | . . . . Melee Attacks . | . . . . Impact . | . . . . Slashing . | . . . . Piercing . | . . . . Sneak Attacks . | . . . . Combat Hostiles . | . . . . Follow-up Attacks . | . . . . Damage Inflicted 2392 | 122 529 669 1072 Guns 594 | 122 472 . . Cannons . | . . . . Explosions 1798 | . 57 669 1072 Melee . | . . . . Ramming . | . . . . Kinetic 58 | 58 . . . Thermal 158 | 64 57 37 . Explosive 1704 | . . 632 1072 Electromagnetic 472 | . 472 . . Impact . | . . . . Slashing . | . . . . Piercing . | . . . . Highest Corruption 1 | . . . 1 Average Corruption 1 | . . . 1 Corruption Purged . | . . . . Corruption Blocked . | . . . . Overload Shots . | . . . . Overflow Damage 35 | . 1 34 . Projectiles . | . . . . Explosions 35 | . 1 34 . Melee . | . . . . Knockbacks . | . . . . Impact . | . . . . Kinetic . | . . . . Secondary . | . . . . Self-Inflicted Damage 35 | . 35 . . Shots 1 | . 1 . . Rammed . | . . . . Targets Rammed . | . . . . Kicked . | . . . . Crushed . | . . . . Highest Temperature 137 | . 137 3 6 Average Temperature 40 | . 45 3 3 Received Heat Transfer 156 | . 90 24 42 Siege Activations . | . . . . Robots Corrupted 1 | . 1 . . Combat Hostiles 1 | . 1 . . Parts Fried 7 | . 7 . . Impact Corruptions . | . . . . Robots Melted . | . . . . Combat Hostiles . | . . . . Parts Melted . | . . . . Heat Transferred 285 | 185 50 50 . Parts Sabotaged . | . . . . Parts Stolen . | . . . . Parts Stripped . | . . . . Power Chain Reactions 1 | . 1 . . Missiles Intercepted . | . . . . Alert | -11 -10 -10 -10 ------- Run | Scr Mat Min Exi Peak Influence 358 | 25 220 358 . Initial 16 | . 16 2 . Average 95 | 7 42 278 . Maximum Alert Level 1 | . 1 1 . Low Security (%) 76 | 100 94 18 . Level 1 23 | . 5 81 . Level 2 . | . . . . Level 3 . | . . . . Level 4 . | . . . . Level 5 . | . . . . High Security . | . . . . Max Security . | . . . . Squads Dispatched 2 | . 2 . . Investigation 1 | . 1 . . Extermination . | . . . . Reinforcement 1 | . 1 . . Assault . | . . . . Garrison . | . . . . Intercept . | . . . . Searches Triggered . | . . . . Construction Impeded . | . . . . Haulers Reinforced . | . . . . Active Scanning Responses . | . . . . Cargo Convoy Interrupts . | . . . . Stealth | -11 -10 -10 -10 --------- Run | Scr Mat Min Exi Distress Signals . | . . . . Communications Jammed . | . . . . Distress Signals . | . . . . Times Spotted 42 | . 6 5 31 Peak Tracking Total 26 | . 4 3 26 Tactical Retreats . | . . . . Traps | -11 -10 -10 -10 ------- Run | Scr Mat Min Exi Traps Triggered 3 | . 3 . . Indirectly . | . . . . Trap Hack Attempts . | . . . . Triggered . | . . . . Disarmed . | . . . . Reprogrammed . | . . . . Reused . | . . . . Traps Extracted . | . . . . Installed . | . . . . Triggered . | . . . . Machines | -11 -10 -10 -10 ---------- Run | Scr Mat Min Exi Machines Disabled 4 | . 2 1 1 Max in Single Turn 2 | . 2 1 1 Machines Sabotaged . | . . . . Overloaded Fab Kills . | . . . . Hacking | -11 -10 -10 -10 --------- Run | Scr Mat Min Exi Machines Accessed 5 | . 4 . 1 Terminals 4 | . 4 . . Fabricators . | . . . . Repair Stations . | . . . . Recycling Units . | . . . . Scanalyzers . | . . . . Garrison Access . | . . . . Total Hacks 17 | . 16 . 1 Successful 11 | . 10 . 1 Failed 6 | . 6 . . Catastrophic . | . . . . Database Lockouts . | . . . . Manual 12 | . 11 . 1 Terminals 16 | . 16 . . Fabricators . | . . . . Repair Stations . | . . . . Recycling Units . | . . . . Scanalyzers . | . . . . Garrison Access . | . . . . Terminal Hacks 7 | . 6 . 1 Prototype ID Bank 1 | . 1 . . Unreport Threat 1 | . 1 . . Locate Traps 1 | . 1 . . Hauler Manifests 1 | . 1 . . Registered Components 1 | . 1 . . Zone Layout 1 | . 1 . . EX-Prototype ID Bank 1 | . . . 1 Fabricator Hacks . | . . . . Repair Station Hacks . | . . . . Recycling Unit Hacks . | . . . . Scanalyzer . | . . . . Garrison Access Hacks . | . . . . Unauthorized Hacks 4 | . 4 . . Terminals 4 | . 4 . . Botnet 4 | . 4 . . Fabricators . | . . . . Repair Stations . | . . . . Recycling Units . | . . . . Scanalyzers . | . . . . Garrison Access . | . . . . Data Cores Recovered . | . . . . Used . | . . . . Hacking Detections 4 | . 4 . . Full Trace Events 2 | . 2 . . Feedback Events . | . . . . Feedback Blocked . | . . . . Robot Schematics Acquired . | . . . . Robots Built . | . . . . Authchips . | . . . . Time . | . . . . Total Robot Build Rating . | . . . . Part Schematics Acquired . | . . . . Parts Built . | . . . . Authchips . | . . . . Time . | . . . . Total Part Build Rating . | . . . . Parts Repaired . | . . . . Time . | . . . . Parts Recycled . | . . . . Recycled Matter . | . . . . Retrieved Matter . | . . . . Retrieved Components . | . . . . Parts Scanalyzed . | . . . . Part Schematics Acquired . | . . . . Parts Damaged . | . . . . Bothacking | -11 -10 -10 -10 ------------ Run | Scr Mat Min Exi Used RIF Installer . | . . . . Robots Hacked . | . . . . Non-combat . | . . . . Combat . | . . . . Robot Hacks Applied . | . . . . Relay Couplers Released . | . . . . Fabnet Peak Effective % . | . . . . Robots Rewired . | . . . . Allies Hacked . | . . . . Hacks Repelled . | . . . . Allies | -11 -10 -10 -10 -------- Run | Scr Mat Min Exi Total Allies . | . . . . Largest Group . | . . . . Highest-Rated Group . | . . . . Highest-Rated Ally . | . . . . Total Orders . | . . . . Ally Attacks . | . . . . Total Damage . | . . . . Kills . | . . . . Allies Corrupted . | . . . . Allies Melted . | . . . . Intel | -11 -10 -10 -10 ------- Run | Scr Mat Min Exi Robot Analysis Total . | . . . . Derelict Logs Recovered . | . . . . Drone Launches . | . . . . Drone Recoveries . | . . . . Exploration | -11 -10 -10 -10 ------------- Run | Scr Mat Min Exi Turns Passed 1131 | 119 515 205 292 Spaces Moved 816 | 60 345 167 244 Core 7 | 6 . . 1 Treads 62 | 54 8 . . Legs . | . . . . Wheels 747 | . 337 167 243 Hover . | . . . . Flight . | . . . . Fastest Speed 50 | 50 80 95 90 Average Speed 104 | 149 95 102 107 Slowest Speed 350 | 160 160 110 350 Overloaded Moves . | . . . . Propulsion Burnouts . | . . . . Robots Hopped . | . . . . Cave-ins Triggered . | . . . . Exploration Rate (%) 38 | 4 57 43 51 Regions Visited 3 Branch Regions 2 Pre-discovered Areas . | . . . . Known Exits Taken . | . . . . Unknown Exits Taken 3 | 1 1 1 . Scrap Searched . | . . . . Spaces Dug . | . . . . Terrain Destroyed 147 | . 5 86 56 Melee . | . . . . Projectile . | . . . . AOE 147 | . 5 86 56 Terrain Rammed . | . . . . Walls Destroyed . | . . . . Machines Disabled . | . . . . Actions | -11 -10 -10 -10 --------- Run | Scr Mat Min Exi Total 1019 | 77 483 191 268 Wait 99 | 1 82 9 7 Move 813 | 59 344 166 244 Hop . | . . . . Pick Up 26 | 7 13 3 3 Fast Attach 12 | 2 6 3 1 Attach 8 | 2 5 . 1 Detach 1 | . . 1 . Swap 3 | . 2 . 1 Drop 11 | . 5 . 6 Fire 46 | 6 26 9 5 Melee . | . . . . Ram . | . . . . Kick . | . . . . Crush . | . . . . Escape Stasis . | . . . . Rewire . | . . . . Trap . | . . . . Miscellaneous . | . . . . Route ------- -11/Scrapyard -10/Materials -10/Mines -10/Exiles History --------- Turn | Location | Event 3 | -11/Scrapyard | Discovered new exit (range 15) 120 | -11/Scrapyard | Entered Materials 305 | -10/Materials | Build established: Mutant 553 | -10/Materials | Discovered new exit (range 11) 635 | -10/Materials | Entered Mines 835 | -10/Mines | Deemed a non-threat by the Exiles lab entrance 836 | -10/Mines | Discovered new exit (range 5) 840 | -10/Mines | Entered Exiles 867 | -10/Exiles | Met 8R-AWN 885 | -10/Exiles | Met EX-HEX 914 | -10/Exiles | Met EX-BIN 927 | -10/Exiles | Aligned with FarCom system 928 | -10/Exiles | Given EX-Vault access code 952 | -10/Exiles | Opened EX-Vault 960 | -10/Exiles | Found Flying Fortress v7 990 | -10/Exiles | Warned to stay clear of 0b10 Research branches 1005 | -10/Exiles | Exiles lab attacked by MAIN.C 1067 | -10/Exiles | Attacked by the Exiles 1101 | -10/Exiles | Destroyed 8 combat bots 1119 | -10/Exiles | Core integrity fell below 50% 1128 | -10/Exiles | Core integrity fell below 20% 1132 | -10/Exiles | Destroyed by G-34 Mercenary with Small Laser Last Messages --------------- 01103_ Acquired 29 matter. 01107_ The unstable cave ceiling collapses. 01118_ Penetrated by HV Slug. 01121_ Com. Wheel destroyed. 01125_ Penetrated by Slug. 01127_ P-60 Hacker resets P-60 Hacker, system corruption cleaned. 01127_ H-55 Commando destroyed. 01127_ G-34 Mercenary destroyed. 01127_ B-36 Bruiser destroyed. 01127_ P-60 Hacker destroyed. 01127_ G-34 Mercenary destroyed. 01127_ H-55 Commando destroyed. 01127_ Mni. Grenade Launcher destroyed. 01130_ Penetrated by HV Slug. 01130_ HV Slug penetrates Wall. 01130_ HV Slug penetrates Machine. 01130_ Machine disabled. 01130_ Com. Wheel destroyed. 01130_ Slug penetrates Machine. 01131_ Ion Engine destroyed. Map ----- +----------------------------------------------------+ | ?????????????????????????????????????????????????? | | ?????????????????????????????????????????????????? | | ?????????????????????????????????????????????????? | | ?????????????????????????????????????????????????? | | ?????????????????????????????????????????????????? | | ?????????????????????????????????????????????????? | | ?????????????????????????????????????????????????? | | ?????????????????????????????????????????????????? | | ?????????????????????????????????????????????????? | | ?????????????????????????????????????????????????? | | ?????????????????????????????????????????????????? | | ######???????????????????????????????????????????? | | """""##??????????????????????????????????????????? | | " """"##?????????????????????????????????# ??????? | | " #????????????????????????????????# ????? | | """#???????????????????????????????? #??? | | " "#???????????#####???????????????# ???? | | " "##?????????##" #??????????????## ???? | | ""###??????##" #???????????### = #????? | | """#?###### " ##????????? =|!%* #????? | | "### ###??#### %[=[ #?????? | | # # ####;; /!bl% #?????? | | ## = = # % g%!% #??????? | | # [g %= p p ##?????? | | = # g #?????? | | [ # @ g ##????? | | = #"""" #### ###??? | | #######??#### * ###? | | ######???????????##### ## | | # ##????????????????????### # | | ####???????????????????????### # | | "" # #???????????????????????????### # | | # ###????????????????????????????#" # | | ## ##??????????????????????????????#### | | ?## #??????????????????????????????????# | | ??# ##??????????????????????????????????## | | ??########????????????????????????????????????### | | ????????????????????????????????????????????????# | | ????????????????????????????????????????????????## | | ?????????????????????????????????????????????????# | | ?????????????????????????????????????????????????? | | ?????????????????????????????????????????????????? | | ?????????????????????????????????????????????????? | | ?????????????????????????????????????????????????? | | ?????????????????????????????????????????????????? | | ?????????????????????????????????????????????????? | | ?????????????????????????????????????????????????? | | ?????????????????????????????????????????????????? | | ?????????????????????????????????????????????????? | | ?????????????????????????????????????????????????? | +----------------------------------------------------+ Best States ------------- Heat Dissipation 25 Energy Generation 14 Energy Capacity 250 Matter Stores 300 Matter Capacity 300 Sight Range 16 Terrain Scan Density 10 Evasion (%) 44 Recoil Reduction 2 Item Schematics ----------------- None Robot Schematics ------------------ None Fabricated ------------ Nothing Alien Tech Used ----------------- None Achievements -------------- None Challenges ------------ None Game ------ Seed AlertSupercompositeClaymores Manual? 0 Play Time 00:13:45 Cumulative 290.0 hours Start 2022.09.09 @ 17:07:44 End 2022.09.09 @ 17:20:26 Sessions 1 Manual Loads 0 Difficulty Rogue Special Mode None Game No. 336 Rogue 336 Adventurer 0 Explorer 0 Win Type - Total 0 Types 0/0/0/0/0/0/0/0/0 Lore% 44 Gallery% 71 Achievement% 58 Wizard Run 0 Options --------- ASCII 0 Keyboard 0 Movement Mouse Keybinds 0 Fullscreen 2 Font 24/Smallcaps Map View 76x50 Tactical HUD 1 Map Filters NONE Filters NONE Steam 1 RUN: 75132460-2179-4275-aa21-04ad600c9d8d